[Event "*** Titled Tuesday Blitz"]
[Site "Chess.com"]
[Date "2020.05.05"]
[Round "10"]
[White "Vamostodorecto"]
[Black "Omk124"]
[Result "0-1"]
[WhiteElo "2503"]
[BlackElo "2411"]
[TimeControl "180+1"]
[EndTime "11:59:00 PDT"]
[Termination "Omk124 won on time"]

1. d4 {[%clk 0:03:00.9]} 1... Nf6 {[%clk 0:02:59.8]} 2. c4 {[%clk 0:03:00.6]}
2... g6 {[%clk 0:02:58.9]} 3. Nc3 {[%clk 0:03:01]} 3... d5 {[%clk 0:02:59.2]} 4.
g4 {[%clk 0:03:01.1]} 4... Bxg4 {[%clk 0:02:55.5]} 5. Qb3 {[%clk 0:03:00.6]}
5... Bc8 {[%clk 0:02:19.1]} 6. cxd5 {[%clk 0:02:58.6]} 6... Bg7 {[%clk
0:02:19.6]} 7. e4 {[%clk 0:02:58.2]} 7... O-O {[%clk 0:02:19.9]} 8. Bg2 {[%clk
0:02:57.8]} 8... Nfd7 {[%clk 0:02:15.4]} 9. Nge2 {[%clk 0:02:56]} 9... c5 {[%clk
0:02:14.9]} 10. Be3 {[%clk 0:02:53.1]} 10... cxd4 {[%clk 0:02:04.5]} 11. Bxd4
{[%clk 0:02:54]} 11... Bxd4 {[%clk 0:01:58.8]} 12. Nxd4 {[%clk 0:02:54.9]} 12...
Na6 {[%clk 0:01:57.7]} 13. O-O {[%clk 0:02:46.4]} 13... Ndc5 {[%clk 0:01:57.1]}
14. Qc4 {[%clk 0:02:40.9]} 14... e5 {[%clk 0:01:47.3]} 15. Nde2 {[%clk
0:02:23.4]} 15... Bd7 {[%clk 0:01:41.9]} 16. a4 {[%clk 0:02:08.8]} 16... Rc8
{[%clk 0:01:41.4]} 17. Qa2 {[%clk 0:01:52.9]} 17... Nb4 {[%clk 0:01:41.4]} 18.
Qb1 {[%clk 0:01:51.6]} 18... a5 {[%clk 0:01:41.6]} 19. f4 {[%clk 0:01:46.6]}
19... Nb3 {[%clk 0:01:38.4]} 20. fxe5 {[%clk 0:01:31.3]} 20... Nxa1 {[%clk
0:01:38.6]} 21. Qxa1 {[%clk 0:01:29.4]} 21... Qe7 {[%clk 0:01:36.4]} 22. Nd4
{[%clk 0:01:15]} 22... Qxe5 {[%clk 0:01:31.5]} 23. Nf3 {[%clk 0:01:13.8]} 23...
Qc7 {[%clk 0:01:27.8]} 24. Qc1 {[%clk 0:01:07.2]} 24... Bg4 {[%clk 0:01:18.9]}
25. Qh6 {[%clk 0:00:46.7]} 25... Bxf3 {[%clk 0:01:15.9]} 26. Rxf3 {[%clk
0:00:47.6]} 26... Qe5 {[%clk 0:01:16.1]} 27. Rh3 {[%clk 0:00:45.2]} 27... Qg7
{[%clk 0:01:16]} 28. Qxg7+ {[%clk 0:00:32.9]} 28... Kxg7 {[%clk 0:01:16.9]} 29.
e5 {[%clk 0:00:29.3]} 29... Rfe8 {[%clk 0:01:15.6]} 30. Re3 {[%clk 0:00:29.8]}
30... Rcd8 {[%clk 0:01:07]} 31. Kf2 {[%clk 0:00:26.4]} 31... f6 {[%clk
0:00:54.5]} 32. e6 {[%clk 0:00:21.8]} 32... f5 {[%clk 0:00:54.9]} 33. Re1 {[%clk
0:00:16]} 33... Nd3+ {[%clk 0:00:53.8]} 34. Ke2 {[%clk 0:00:15]} 34... Nxe1
{[%clk 0:00:54.7]} 35. Kxe1 {[%clk 0:00:15.9]} 35... Kf6 {[%clk 0:00:55.3]} 36.
Kd2 {[%clk 0:00:15.3]} 36... Ke5 {[%clk 0:00:55.1]} 37. Kd3 {[%clk 0:00:16]}
37... Rxe6 {[%clk 0:00:55.4]} 38. Kc4 {[%clk 0:00:14.1]} 38... Red6 {[%clk
0:00:54.8]} 39. Nb5 {[%clk 0:00:10.9]} 39... Rxd5 {[%clk 0:00:54.6]} 40. Bxd5
{[%clk 0:00:11.2]} 40... Rxd5 {[%clk 0:00:55.5]} 41. Nc7 {[%clk 0:00:08.5]}
41... Rd7 {[%clk 0:00:54.2]} 42. Nb5 {[%clk 0:00:07.1]} 42... f4 {[%clk
0:00:54.4]} 43. b4 {[%clk 0:00:07.1]} 43... f3 {[%clk 0:00:54.8]} 0-1

[Event "*** Titled Tuesday Blitz"]
[Site "Chess.com"]
[Date "2020.05.05"]
[Round "10"]
[White "MFBerna"]
[Black "FedaMaster"]
[Result "1-0"]
[WhiteElo "2366"]
[BlackElo "2513"]
[TimeControl "180+1"]
[EndTime "11:59:03 PDT"]
[Termination "MFBerna won on time"]

1. e4 {[%clk 0:03:00.9]} 1... d5 {[%clk 0:02:48.9]} 2. exd5 {[%clk 0:03:00.2]}
2... Qxd5 {[%clk 0:02:48.6]} 3. Qf3 {[%clk 0:02:58.2]} 3... Qd6 {[%clk
0:02:47.4]} 4. Nc3 {[%clk 0:02:55]} 4... Nc6 {[%clk 0:02:40]} 5. Bb5 {[%clk
0:02:50]} 5... Bd7 {[%clk 0:02:37.8]} 6. Nge2 {[%clk 0:02:47.9]} 6... a6 {[%clk
0:02:26.6]} 7. Ba4 {[%clk 0:02:45.1]} 7... e5 {[%clk 0:02:23]} 8. d3 {[%clk
0:02:39.1]} 8... f5 {[%clk 0:02:21.1]} 9. Be3 {[%clk 0:02:21.2]} 9... O-O-O
{[%clk 0:02:10.7]} 10. O-O-O {[%clk 0:02:11.5]} 10... Nf6 {[%clk 0:02:01.9]} 11.
d4 {[%clk 0:01:57.4]} 11... e4 {[%clk 0:01:38.5]} 12. Qg3 {[%clk 0:01:57.5]}
12... Qb4 {[%clk 0:01:26.3]} 13. d5 {[%clk 0:01:32.7]} 13... Nb8 {[%clk
0:00:26.8]} 14. a3 {[%clk 0:00:52.1]} 14... Qa5 {[%clk 0:00:22.5]} 15. b4 {[%clk
0:00:45.7]} 15... Bxb4 {[%clk 0:00:22.4]} 16. axb4 {[%clk 0:00:46.6]} 16... Qxb4
{[%clk 0:00:23]} 17. Bb3 {[%clk 0:00:31.7]} 17... a5 {[%clk 0:00:21.4]} 18. Qxg7
{[%clk 0:00:27.7]} 18... Rdf8 {[%clk 0:00:19.2]} 19. Rd4 {[%clk 0:00:23.3]}
19... Qa3+ {[%clk 0:00:18.2]} 20. Kd2 {[%clk 0:00:23.5]} 20... Rhg8 {[%clk
0:00:16.4]} 21. Qh6 {[%clk 0:00:20.2]} 21... Na6 {[%clk 0:00:09.5]} 22. Rc4
{[%clk 0:00:17.3]} 22... b5 {[%clk 0:00:07.5]} 23. Rc6 {[%clk 0:00:07]} 23...
Bxc6 {[%clk 0:00:07.3]} 24. dxc6 {[%clk 0:00:07.9]} 24... Qd6+ {[%clk
0:00:05.9]} 25. Kc1 {[%clk 0:00:07]} 25... a4 {[%clk 0:00:05.9]} 26. Bxg8 {[%clk
0:00:04]} 26... Rxg8 {[%clk 0:00:04]} 27. Rd1 {[%clk 0:00:04.4]} 27... Qa3+
{[%clk 0:00:03.8]} 28. Kd2 {[%clk 0:00:05]} 1-0

[Event "*** Titled Tuesday Blitz"]
[Site "Chess.com"]
[Date "2020.05.05"]
[Round "10"]
[White "MarcoCorvi"]
[Black "maxsergej"]
[Result "0-1"]
[WhiteElo "2214"]
[BlackElo "2132"]
[TimeControl "180+1"]
[EndTime "11:59:04 PDT"]
[Termination "maxsergej won on time"]

1. e4 {[%clk 0:03:00.9]} 1... c5 {[%clk 0:02:59.5]} 2. Nc3 {[%clk 0:02:58.1]}
2... Nc6 {[%clk 0:02:59.1]} 3. Bb5 {[%clk 0:02:57.4]} 3... g6 {[%clk 0:02:58.9]}
4. Bxc6 {[%clk 0:02:53.2]} 4... bxc6 {[%clk 0:02:58.3]} 5. d3 {[%clk 0:02:53.5]}
5... Bg7 {[%clk 0:02:58.2]} 6. f4 {[%clk 0:02:53.5]} 6... Nf6 {[%clk 0:02:58.1]}
7. Nf3 {[%clk 0:02:53.6]} 7... O-O {[%clk 0:02:57.6]} 8. O-O {[%clk 0:02:53.2]}
8... d6 {[%clk 0:02:55.3]} 9. Bd2 {[%clk 0:02:53.1]} 9... Rb8 {[%clk 0:02:54.1]}
10. b3 {[%clk 0:02:52.6]} 10... Re8 {[%clk 0:02:45.4]} 11. Qe1 {[%clk
0:02:51.2]} 11... e6 {[%clk 0:02:32.5]} 12. Qh4 {[%clk 0:02:47.6]} 12... Nd7
{[%clk 0:02:32.5]} 13. Qxd8 {[%clk 0:02:37.6]} 13... Rxd8 {[%clk 0:02:31.6]} 14.
Rae1 {[%clk 0:02:37.3]} 14... d5 {[%clk 0:02:08.8]} 15. h3 {[%clk 0:02:30.7]}
15... c4 {[%clk 0:02:04.7]} 16. Na4 {[%clk 0:02:10.4]} 16... cxb3 {[%clk
0:01:58.9]} 17. axb3 {[%clk 0:02:04]} 17... c5 {[%clk 0:01:49.5]} 18. Ba5 {[%clk
0:02:00.4]} 18... Rf8 {[%clk 0:01:42.7]} 19. exd5 {[%clk 0:01:58.6]} 19... exd5
{[%clk 0:01:41.9]} 20. f5 {[%clk 0:01:54.5]} 20... c4 {[%clk 0:01:30.7]} 21.
dxc4 {[%clk 0:01:45.5]} 21... dxc4 {[%clk 0:01:29.9]} 22. b4 {[%clk 0:01:41.5]}
22... Ba6 {[%clk 0:01:10.9]} 23. Re7 {[%clk 0:01:25.9]} 23... Bb5 {[%clk
0:01:06.4]} 24. Nc5 {[%clk 0:01:15.8]} 24... Nxc5 {[%clk 0:01:03.5]} 25. bxc5
{[%clk 0:01:16.7]} 25... a6 {[%clk 0:00:56.3]} 26. Bc7 {[%clk 0:01:13.4]} 26...
Rbe8 {[%clk 0:00:52.5]} 27. Rfe1 {[%clk 0:01:09.3]} 27... Rxe7 {[%clk
0:00:52.1]} 28. Rxe7 {[%clk 0:01:10.2]} 28... gxf5 {[%clk 0:00:48.4]} 29. Ne5
{[%clk 0:00:39.1]} 29... Bf6 {[%clk 0:00:44.9]} 30. Bd6 {[%clk 0:00:17.6]} 30...
Bxe7 {[%clk 0:00:42.7]} 31. Bxe7 {[%clk 0:00:18.5]} 31... Rc8 {[%clk 0:00:41.1]}
32. g4 {[%clk 0:00:05.1]} 32... f6 {[%clk 0:00:38.2]} 33. Bxf6 {[%clk
0:00:03.6]} 33... fxg4 {[%clk 0:00:37.7]} 34. Nxg4 {[%clk 0:00:02.5]} 34... Rxc5
{[%clk 0:00:36.9]} 35. Kf2 {[%clk 0:00:02]} 35... Rf5+ {[%clk 0:00:31.6]} 36.
Ke3 {[%clk 0:00:02.3]} 36... h5 {[%clk 0:00:31.7]} 37. Ke4 {[%clk 0:00:01.2]}
37... Rf1 {[%clk 0:00:30.7]} 0-1

[Event "*** Titled Tuesday Blitz"]
[Site "Chess.com"]
[Date "2020.05.05"]
[Round "10"]
[White "j2806"]
[Black "HouseOfDurin"]
[Result "1-0"]
[WhiteElo "1981"]
[BlackElo "1982"]
[TimeControl "180+1"]
[EndTime "11:59:06 PDT"]
[Termination "j2806 won by resignation"]

1. e4 {[%clk 0:03:00.6]} 1... c5 {[%clk 0:02:59.8]} 2. Nf3 {[%clk 0:03:00.2]}
2... Nc6 {[%clk 0:02:58.9]} 3. d4 {[%clk 0:03:00.1]} 3... cxd4 {[%clk
0:02:59.8]} 4. Nxd4 {[%clk 0:03:00.5]} 4... e5 {[%clk 0:03:00.4]} 5. Nb5 {[%clk
0:02:59.1]} 5... d6 {[%clk 0:03:00.4]} 6. N1c3 {[%clk 0:02:57.1]} 6... a6 {[%clk
0:03:00.7]} 7. Na3 {[%clk 0:02:57.3]} 7... b5 {[%clk 0:03:01.3]} 8. Nd5 {[%clk
0:02:56.1]} 8... Nf6 {[%clk 0:03:01.8]} 9. Bg5 {[%clk 0:02:55.2]} 9... Be7
{[%clk 0:03:01.7]} 10. Bxf6 {[%clk 0:02:52.7]} 10... Bxf6 {[%clk 0:03:02.6]} 11.
c3 {[%clk 0:02:47.3]} 11... O-O {[%clk 0:03:01.6]} 12. Nc2 {[%clk 0:02:45.8]}
12... Bg5 {[%clk 0:03:01]} 13. a4 {[%clk 0:02:45]} 13... Rb8 {[%clk 0:02:59.1]}
14. axb5 {[%clk 0:02:20.6]} 14... axb5 {[%clk 0:03:00]} 15. Be2 {[%clk
0:02:16.8]} 15... Be6 {[%clk 0:02:51.7]} 16. O-O {[%clk 0:02:13.5]} 16... Ne7
{[%clk 0:02:38]} 17. Nce3 {[%clk 0:02:09.2]} 17... Bxe3 {[%clk 0:02:36.7]} 18.
Nxe3 {[%clk 0:02:08.3]} 18... d5 {[%clk 0:02:36.9]} 19. exd5 {[%clk 0:02:07]}
19... Nxd5 {[%clk 0:02:37]} 20. Nxd5 {[%clk 0:02:01.5]} 20... Bxd5 {[%clk
0:02:01.2]} 21. Qc2 {[%clk 0:01:57.4]} 21... Qg5 {[%clk 0:01:25.3]} 22. f3
{[%clk 0:01:50.3]} 22... Rfd8 {[%clk 0:00:59]} 23. Rad1 {[%clk 0:01:46.8]} 23...
h6 {[%clk 0:00:56.2]} 24. Kh1 {[%clk 0:01:40.4]} 24... Bc4 {[%clk 0:00:47.8]}
25. Qe4 {[%clk 0:01:30.7]} 25... Bxe2 {[%clk 0:00:18]} 26. Qxe2 {[%clk 0:01:29]}
26... Rxd1 {[%clk 0:00:15]} 27. Rxd1 {[%clk 0:01:28.3]} 27... Rd8 {[%clk
0:00:15.6]} 28. Rxd8+ {[%clk 0:01:15.1]} 28... Qxd8 {[%clk 0:00:16.5]} 29. h3
{[%clk 0:01:13.2]} 29... Qd5 {[%clk 0:00:14]} 30. Kh2 {[%clk 0:01:10.8]} 30...
f6 {[%clk 0:00:12.7]} 31. Qe4 {[%clk 0:01:09.1]} 31... Qc5 {[%clk 0:00:10.2]}
32. Kg3 {[%clk 0:01:05.2]} 32... Kf7 {[%clk 0:00:09.5]} 33. Qb7+ {[%clk
0:01:03.9]} 33... Kg6 {[%clk 0:00:09.6]} 34. Qe4+ {[%clk 0:01:03.4]} 34... f5
{[%clk 0:00:09.5]} 35. Qd3 {[%clk 0:01:01.6]} 35... Kf6 {[%clk 0:00:08.3]} 36.
b4 {[%clk 0:00:59.1]} 36... Qc6 {[%clk 0:00:06.8]} 37. Kf2 {[%clk 0:00:57.7]}
37... Ke6 {[%clk 0:00:05.4]} 38. Ke2 {[%clk 0:00:56.1]} 38... e4 {[%clk
0:00:04.9]} 39. fxe4 {[%clk 0:00:55.9]} 39... fxe4 {[%clk 0:00:04.8]} 40. Qe3
{[%clk 0:00:56.2]} 40... Ke5 {[%clk 0:00:05]} 41. Qd4+ {[%clk 0:00:54.2]} 41...
Kf5 {[%clk 0:00:04]} 42. Ke3 {[%clk 0:00:54.1]} 42... Qe6 {[%clk 0:00:01.7]} 43.
g4+ {[%clk 0:00:53.9]} 43... Kg5 {[%clk 0:00:01.3]} 44. Qxe4 {[%clk 0:00:53.1]}
44... Qxe4+ {[%clk 0:00:02.2]} 45. Kxe4 {[%clk 0:00:53]} 45... Kh4 {[%clk
0:00:03.1]} 46. Kd5 {[%clk 0:00:52.7]} 46... Kxh3 {[%clk 0:00:02.9]} 47. Kc5
{[%clk 0:00:53.6]} 47... Kxg4 {[%clk 0:00:02.6]} 48. Kxb5 {[%clk 0:00:54.5]}
48... h5 {[%clk 0:00:03.3]} 49. c4 {[%clk 0:00:54]} 49... h4 {[%clk 0:00:04.2]}
50. c5 {[%clk 0:00:54.5]} 50... h3 {[%clk 0:00:05.1]} 51. c6 {[%clk 0:00:55.2]}
51... h2 {[%clk 0:00:06]} 52. c7 {[%clk 0:00:56.1]} 52... h1=Q {[%clk
0:00:06.8]} 53. c8=Q+ {[%clk 0:00:56.5]} 53... Kh5 {[%clk 0:00:07]} 54. Qh8+
{[%clk 0:00:55.8]} 54... Kg6 {[%clk 0:00:07.3]} 55. Qxh1 {[%clk 0:00:56.2]} 1-0

[Event "*** Titled Tuesday Blitz"]
[Site "Chess.com"]
[Date "2020.05.05"]
[Round "10"]
[White "pedromartinez91"]
[Black "Oligan22"]
[Result "1-0"]
[WhiteElo "2532"]
[BlackElo "2375"]
[TimeControl "180+1"]
[EndTime "11:59:09 PDT"]
[Termination "pedromartinez91 won on time"]

1. e4 {[%clk 0:03:00.9]} 1... c6 {[%clk 0:03:00.1]} 2. c4 {[%clk 0:03:00.6]}
2... d5 {[%clk 0:02:59.8]} 3. cxd5 {[%clk 0:03:01.5]} 3... cxd5 {[%clk
0:03:00.6]} 4. exd5 {[%clk 0:03:02.4]} 4... Nf6 {[%clk 0:02:57]} 5. Qa4+ {[%clk
0:02:58.4]} 5... Bd7 {[%clk 0:02:56.7]} 6. Qa3 {[%clk 0:02:58.1]} 6... Nxd5
{[%clk 0:02:20.8]} 7. Qb3 {[%clk 0:02:42.7]} 7... Bc6 {[%clk 0:02:20.6]} 8. Nf3
{[%clk 0:02:41.6]} 8... e6 {[%clk 0:02:12.3]} 9. Nc3 {[%clk 0:02:41.6]} 9... Be7
{[%clk 0:01:55.7]} 10. d4 {[%clk 0:02:40]} 10... O-O {[%clk 0:01:55]} 11. Bd3
{[%clk 0:02:39.8]} 11... Nb4 {[%clk 0:01:49.3]} 12. Be4 {[%clk 0:02:40.3]} 12...
Bxe4 {[%clk 0:01:47.2]} 13. Nxe4 {[%clk 0:02:41.2]} 13... N8c6 {[%clk
0:01:40.6]} 14. O-O {[%clk 0:02:36.6]} 14... Nxd4 {[%clk 0:01:34.1]} 15. Nxd4
{[%clk 0:02:37.5]} 15... Qxd4 {[%clk 0:01:34.4]} 16. Nc3 {[%clk 0:02:38.4]}
16... b6 {[%clk 0:01:10.8]} 17. Be3 {[%clk 0:02:36.9]} 17... Qh4 {[%clk
0:01:10.7]} 18. Rad1 {[%clk 0:02:27]} 18... Nc6 {[%clk 0:01:02.9]} 19. Rd7
{[%clk 0:02:22.4]} 19... Bf6 {[%clk 0:01:01.2]} 20. Nb5 {[%clk 0:02:05.5]} 20...
Ne5 {[%clk 0:00:57.7]} 21. Rb7 {[%clk 0:02:02]} 21... Ng4 {[%clk 0:00:51.1]} 22.
Bf4 {[%clk 0:02:01.5]} 22... a6 {[%clk 0:00:42.2]} 23. Bg3 {[%clk 0:02:01.4]}
23... Qh5 {[%clk 0:00:39.6]} 24. Nc7 {[%clk 0:02:01.4]} 24... Rad8 {[%clk
0:00:33.4]} 25. h3 {[%clk 0:01:43.1]} 25... Ne5 {[%clk 0:00:20.9]} 26. Qxb6
{[%clk 0:01:42.9]} 26... Nd3 {[%clk 0:00:18.4]} 27. Qxa6 {[%clk 0:01:34]} 27...
Nxb2 {[%clk 0:00:17.5]} 28. Qb5 {[%clk 0:01:24.6]} 28... Qg6 {[%clk 0:00:16.4]}
29. a4 {[%clk 0:01:23.3]} 29... Bd4 {[%clk 0:00:14.7]} 30. Kh2 {[%clk 0:01:17]}
30... Nd3 {[%clk 0:00:14.9]} 31. a5 {[%clk 0:01:13]} 31... h5 {[%clk 0:00:13.1]}
32. Rd1 {[%clk 0:00:38.4]} 32... h4 {[%clk 0:00:09.8]} 33. Bxh4 {[%clk
0:00:37.1]} 33... Nf4 {[%clk 0:00:06.6]} 34. Qg5 {[%clk 0:00:27.7]} 34... Qe4
{[%clk 0:00:01.6]} 35. a6 {[%clk 0:00:19.6]} 35... Bf6 {[%clk 0:00:01.8]} 36.
Rxd8 {[%clk 0:00:18.8]} 1-0

[Event "*** Titled Tuesday Blitz"]
[Site "Chess.com"]
[Date "2020.05.05"]
[Round "10"]
[White "ChessBitl"]
[Black "NormWeinstein"]
[Result "1-0"]
[WhiteElo "2329"]
[BlackElo "2444"]
[TimeControl "180+1"]
[EndTime "11:59:10 PDT"]
[Termination "ChessBitl won on time"]

1. e4 {[%clk 0:03:00]} 1... c6 {[%clk 0:02:59.2]} 2. d4 {[%clk 0:02:59.5]} 2...
d6 {[%clk 0:02:59.7]} 3. Nd2 {[%clk 0:03:00]} 3... Nf6 {[%clk 0:02:59.8]} 4. Bd3
{[%clk 0:02:59.8]} 4... e5 {[%clk 0:02:59.6]} 5. Ne2 {[%clk 0:02:54.7]} 5... Be7
{[%clk 0:02:56.9]} 6. Nf3 {[%clk 0:02:50.1]} 6... Qc7 {[%clk 0:02:50.7]} 7. O-O
{[%clk 0:02:48.8]} 7... O-O {[%clk 0:02:50.3]} 8. Bg5 {[%clk 0:02:48.4]} 8... h6
{[%clk 0:02:41.5]} 9. Bh4 {[%clk 0:02:47.6]} 9... Bg4 {[%clk 0:02:33.9]} 10. c3
{[%clk 0:02:41.4]} 10... Bxf3 {[%clk 0:02:31.6]} 11. gxf3 {[%clk 0:02:41.2]}
11... Nh7 {[%clk 0:02:26.4]} 12. Bg3 {[%clk 0:02:38.5]} 12... Nd7 {[%clk
0:02:13]} 13. Kh1 {[%clk 0:02:36]} 13... Bg5 {[%clk 0:01:59.3]} 14. f4 {[%clk
0:02:33.9]} 14... exf4 {[%clk 0:01:59.1]} 15. Nxf4 {[%clk 0:02:33.7]} 15... Rae8
{[%clk 0:01:53.9]} 16. f3 {[%clk 0:02:32.8]} 16... Qd8 {[%clk 0:01:45.8]} 17.
Qe1 {[%clk 0:02:24.8]} 17... g6 {[%clk 0:01:30.6]} 18. Qf2 {[%clk 0:02:17.9]}
18... Bf6 {[%clk 0:01:21.9]} 19. Rae1 {[%clk 0:02:15.1]} 19... Bg7 {[%clk
0:01:21.3]} 20. Ng2 {[%clk 0:02:08.5]} 20... Ndf6 {[%clk 0:01:17.9]} 21. h3
{[%clk 0:02:05.3]} 21... b6 {[%clk 0:01:10.2]} 22. Bh2 {[%clk 0:02:05]} 22... c5
{[%clk 0:01:09.6]} 23. Bb5 {[%clk 0:02:01.2]} 23... Re7 {[%clk 0:01:08.3]} 24.
Qg3 {[%clk 0:01:53]} 24... cxd4 {[%clk 0:01:02.5]} 25. cxd4 {[%clk 0:01:51.9]}
25... Ne8 {[%clk 0:00:46.8]} 26. Rd1 {[%clk 0:01:43.9]} 26... Nc7 {[%clk
0:00:34.4]} 27. Bc6 {[%clk 0:01:43.3]} 27... d5 {[%clk 0:00:26.4]} 28. e5 {[%clk
0:01:43.1]} 28... Ne6 {[%clk 0:00:25.3]} 29. Nf4 {[%clk 0:01:36]} 29... Nhg5
{[%clk 0:00:20.4]} 30. Nxd5 {[%clk 0:01:28.1]} 30... Kh7 {[%clk 0:00:10]} 31.
Nxe7 {[%clk 0:01:25.8]} 31... Qxe7 {[%clk 0:00:10.1]} 32. f4 {[%clk 0:01:24.2]}
32... Nd8 {[%clk 0:00:08.3]} 33. Bg2 {[%clk 0:01:20.9]} 33... Nge6 {[%clk
0:00:08.2]} 34. d5 {[%clk 0:01:19.5]} 34... Nc5 {[%clk 0:00:08.2]} 35. d6 {[%clk
0:01:16.5]} 35... Qd7 {[%clk 0:00:08.2]} 36. b4 {[%clk 0:01:04.6]} 36... Na4
{[%clk 0:00:07.1]} 37. Be4 {[%clk 0:01:03.2]} 37... Kh8 {[%clk 0:00:05.3]} 38.
Rc1 {[%clk 0:00:56.2]} 38... b5 {[%clk 0:00:02.7]} 39. Qd3 {[%clk 0:00:48.8]}
39... a6 {[%clk 0:00:02.3]} 40. f5 {[%clk 0:00:44.5]} 40... gxf5 {[%clk
0:00:02.4]} 41. Bxf5 {[%clk 0:00:44.6]} 41... Ne6 {[%clk 0:00:02.9]} 42. Rg1
{[%clk 0:00:37.1]} 42... Nb6 {[%clk 0:00:02.2]} 43. Rc7 {[%clk 0:00:36.7]} 43...
Qd8 {[%clk 0:00:01.1]} 44. Bxe6 {[%clk 0:00:35.5]} 1-0

[Event "*** Titled Tuesday Blitz"]
[Site "Chess.com"]
[Date "2020.05.05"]
[Round "10"]
[White "WonderChampion"]
[Black "Anastasia_Nesytova"]
[Result "0-1"]
[WhiteElo "1860"]
[BlackElo "2370"]
[TimeControl "180+1"]
[EndTime "11:59:11 PDT"]
[Termination "Anastasia_Nesytova won by checkmate"]

1. e4 {[%clk 0:03:00.9]} 1... c6 {[%clk 0:02:59.9]} 2. c4 {[%clk 0:02:59.9]}
2... d5 {[%clk 0:02:59.7]} 3. exd5 {[%clk 0:02:59.5]} 3... cxd5 {[%clk
0:02:59.8]} 4. cxd5 {[%clk 0:02:59.2]} 4... Nf6 {[%clk 0:03:00.3]} 5. Nc3 {[%clk
0:02:58]} 5... Nxd5 {[%clk 0:03:00]} 6. Bb5+ {[%clk 0:02:58.4]} 6... Nc6 {[%clk
0:02:59.3]} 7. Nf3 {[%clk 0:02:55.5]} 7... g6 {[%clk 0:02:57.2]} 8. O-O {[%clk
0:02:55.2]} 8... Bg7 {[%clk 0:02:55.9]} 9. d4 {[%clk 0:02:52.6]} 9... O-O {[%clk
0:02:54.5]} 10. Bc4 {[%clk 0:02:43.3]} 10... Nb6 {[%clk 0:02:43.9]} 11. Bb3
{[%clk 0:02:33.3]} 11... Nxd4 {[%clk 0:02:42.9]} 12. Nxd4 {[%clk 0:02:33.6]}
12... Qxd4 {[%clk 0:02:42.3]} 13. Qe2 {[%clk 0:02:28.6]} 13... Bg4 {[%clk
0:02:40.5]} 14. Qxe7 {[%clk 0:02:16.8]} 14... Nc4 {[%clk 0:02:04.5]} 15. Bxc4
{[%clk 0:02:06.6]} 15... Qxc4 {[%clk 0:02:04.2]} 16. Qe4 {[%clk 0:01:56.8]}
16... Qxe4 {[%clk 0:02:02.3]} 17. Nxe4 {[%clk 0:01:56.9]} 17... Rad8 {[%clk
0:02:01.7]} 18. h3 {[%clk 0:01:51.9]} 18... Bf5 {[%clk 0:01:50.7]} 19. Ng3
{[%clk 0:01:50.9]} 19... Bd3 {[%clk 0:01:50.6]} 20. Re1 {[%clk 0:01:49.3]} 20...
Rfe8 {[%clk 0:01:48.6]} 21. Be3 {[%clk 0:01:39.8]} 21... Bxb2 {[%clk 0:01:45.1]}
22. Rad1 {[%clk 0:01:40.1]} 22... Bc3 {[%clk 0:01:37.5]} 23. Bd2 {[%clk
0:01:35]} 23... Bf6 {[%clk 0:01:20.4]} 24. Ba5 {[%clk 0:01:28.8]} 24... Rxe1+
{[%clk 0:01:18.8]} 25. Rxe1 {[%clk 0:01:28]} 25... Rc8 {[%clk 0:01:14.2]} 26. a3
{[%clk 0:01:13.9]} 26... b6 {[%clk 0:01:13]} 27. Bb4 {[%clk 0:01:13.9]} 27... h5
{[%clk 0:01:10.5]} 28. Ne4 {[%clk 0:01:09]} 28... Bb2 {[%clk 0:01:09.7]} 29. Nd6
{[%clk 0:01:06]} 29... Rd8 {[%clk 0:01:00.4]} 30. Re7 {[%clk 0:01:04.1]} 30...
Bb1 {[%clk 0:00:36.6]} 31. Nxf7 {[%clk 0:00:57]} 31... Rd1+ {[%clk 0:00:33.5]}
32. Kh2 {[%clk 0:00:57]} 32... Bc1 {[%clk 0:00:33.8]} 33. Nd6 {[%clk 0:00:52.7]}
33... Bf4+ {[%clk 0:00:31.8]} 34. g3 {[%clk 0:00:51.8]} 34... Bxd6 {[%clk
0:00:29.1]} 35. Rd7 {[%clk 0:00:51.7]} 35... Be4 {[%clk 0:00:26.6]} 36. Rd8+
{[%clk 0:00:36.6]} 36... Kf7 {[%clk 0:00:24.7]} 37. f3 {[%clk 0:00:23]} 37...
Bxf3 {[%clk 0:00:22.7]} 38. Rd7+ {[%clk 0:00:19.6]} 38... Ke8 {[%clk 0:00:22.5]}
39. Rxd6 {[%clk 0:00:14]} 39... Rh1# {[%clk 0:00:21.8]} 0-1

[Event "*** Titled Tuesday Blitz"]
[Site "Chess.com"]
[Date "2020.05.05"]
[Round "10"]
[White "DenisQ"]
[Black "adriangschnitzer"]
[Result "1-0"]
[WhiteElo "2672"]
[BlackElo "2460"]
[TimeControl "180+1"]
[EndTime "11:59:13 PDT"]
[Termination "DenisQ won on time"]

1. Nf3 {[%clk 0:03:00.9]} 1... c5 {[%clk 0:02:59.6]} 2. c4 {[%clk 0:03:00.2]}
2... Nf6 {[%clk 0:02:59.3]} 3. Nc3 {[%clk 0:03:00.3]} 3... Nc6 {[%clk 0:02:59]}
4. g3 {[%clk 0:02:59.9]} 4... d5 {[%clk 0:02:59]} 5. d4 {[%clk 0:02:56.6]} 5...
cxd4 {[%clk 0:02:47.6]} 6. Nxd4 {[%clk 0:02:54.7]} 6... dxc4 {[%clk 0:02:42.7]}
7. Nxc6 {[%clk 0:02:53.7]} 7... Qxd1+ {[%clk 0:02:43.6]} 8. Nxd1 {[%clk
0:02:53.6]} 8... bxc6 {[%clk 0:02:42.3]} 9. Bg2 {[%clk 0:02:53.8]} 9... Nd5
{[%clk 0:02:42.4]} 10. Ne3 {[%clk 0:02:52.6]} 10... e6 {[%clk 0:02:24.1]} 11.
Nxc4 {[%clk 0:02:52]} 11... Ba6 {[%clk 0:02:19.7]} 12. b3 {[%clk 0:02:51.5]}
12... Bb4+ {[%clk 0:02:13.8]} 13. Bd2 {[%clk 0:02:50.6]} 13... Bxd2+ {[%clk
0:02:12.2]} 14. Kxd2 {[%clk 0:02:47.8]} 14... Ke7 {[%clk 0:02:04.3]} 15. Rhc1
{[%clk 0:02:45]} 15... Rhc8 {[%clk 0:01:58.8]} 16. Ne5 {[%clk 0:02:21.6]} 16...
c5 {[%clk 0:01:54.8]} 17. Rc2 {[%clk 0:02:04.6]} 17... f6 {[%clk 0:01:49.6]} 18.
Nc4 {[%clk 0:01:57]} 18... Rab8 {[%clk 0:01:34]} 19. Rac1 {[%clk 0:01:56]} 19...
Nb4 {[%clk 0:01:28.7]} 20. Rb2 {[%clk 0:01:55.1]} 20... Nd5 {[%clk 0:01:10.9]}
21. Ke1 {[%clk 0:01:45.1]} 21... Bxc4 {[%clk 0:00:51.2]} 22. Rxc4 {[%clk
0:01:42.4]} 22... Rb4 {[%clk 0:00:51.6]} 23. Bxd5 {[%clk 0:00:56.8]} 23... exd5
{[%clk 0:00:49.5]} 24. Rxb4 {[%clk 0:00:56.9]} 24... cxb4 {[%clk 0:00:49.4]} 25.
Kd2 {[%clk 0:00:57.1]} 25... Rc3 {[%clk 0:00:38.8]} 26. e3 {[%clk 0:00:35.1]}
26... Rc6 {[%clk 0:00:12.7]} 27. Rc2 {[%clk 0:00:34.4]} 27... Ra6 {[%clk
0:00:12.8]} 28. Kc1 {[%clk 0:00:25.2]} 28... Kd6 {[%clk 0:00:12.6]} 29. Kb2
{[%clk 0:00:25.4]} 29... Rb6 {[%clk 0:00:04]} 30. Rc8 {[%clk 0:00:24.3]} 30...
Rb7 {[%clk 0:00:03.4]} 31. Kc2 {[%clk 0:00:22.5]} 31... Ke5 {[%clk 0:00:02.6]}
32. Re8+ {[%clk 0:00:20.6]} 32... Kf5 {[%clk 0:00:02.2]} 33. Kd3 {[%clk
0:00:20.3]} 33... h5 {[%clk 0:00:01.9]} 34. h3 {[%clk 0:00:20]} 34... g5 {[%clk
0:00:01.7]} 35. Rd8 {[%clk 0:00:19.7]} 35... Ke6 {[%clk 0:00:01.5]} 36. Kd4
{[%clk 0:00:19]} 1-0